bitfinex-derivatives/quotes_BTCF0:USTF0_20241221
["timestamp","ask_amount","ask_price","bid_price","bid_amount"]
[1734749346767,0.01302566,97491.0,97490.0,0.051311]
[1734749346973,0.01302566,97491.0,97490.0,0.06248147]
[1734749347363,0.01302566,97491.0,97490.0,0.06249013]
[1734749347871,0.02002566,97491.0,97490.0,0.06249013]
[1734749348475,0.02002566,97491.0,97490.0,0.051311]
[1734749348774,0.02302566,97491.0,97490.0,0.051311]
[1734749349165,0.01120002,97491.0,97490.0,0.051311]
[1734749351865,0.3608,97500.0,97499.0,0.051307]
[1734749352067,0.033,97508.0,97505.0,0.051304]
[1734749352368,0.033,97508.0,97507.0,4e-05]
[1734749353668,0.042,97508.0,97507.0,4e-05]
[1734749354977,0.048,97508.0,97507.0,0.00104]
[1734749355677,0.047,97508.0,97507.0,0.00104]
[1734749356267,0.041,97508.0,97507.0,0.00104]
[1734749356464,0.045,97508.0,97507.0,0.00104]
[1734749357478,0.012,97508.0,97507.0,0.00104]
[1734749358063,0.00060846,97508.0,97507.0,0.36184]
[1734749358366,0.01180643,97515.0,97507.0,0.36184]
[1734749358367,0.15351829,97515.0,97507.0,0.46550297]
[1734749358569,0.15351829,97515.0,97514.0,0.051299]
[1734749358778,0.15351829,97515.0,97514.0,0.051339]
[1734749358982,0.15351829,97515.0,97514.0,0.06251974]
[1734749360071,0.15351829,97515.0,97514.0,0.06651974]
[1734749360381,0.051285,97541.0,97514.0,0.06651974]
[1734749360382,0.0319,97539.0,97535.0,0.051288]
[1734749360764,0.0319,97539.0,97538.0,4e-05]
[1734749361179,0.20480229,97544.0,97538.0,0.051327]
[1734749361376,0.15351829,97544.0,97538.0,4e-05]
[1734749361674,0.0325,97546.0,97543.0,4e-05]
[1734749361979,0.0325,97546.0,97545.0,4e-05]
[1734749363477,0.0385,97546.0,97545.0,0.00104]
[1734749364676,0.0415,97546.0,97545.0,0.00104]
[1734749364875,0.453582,97546.0,97545.0,0.00104]
[1734749365581,0.3698,97546.0,97545.0,0.00104]
[1734749365876,0.009,97546.0,97545.0,0.00104]
[1734749368880,0.0628,97566.0,97545.0,0.00404]
[1734749369081,0.0628,97566.0,97556.0,0.46173293]
[1734749369393,0.0628,97566.0,97565.0,4e-05]
[1734749370681,0.0678,97566.0,97565.0,4e-05]
[1734749371076,0.0688,97566.0,97565.0,4e-05]
[1734749371779,0.0708,97566.0,97565.0,4e-05]
[1734749372485,0.0678,97566.0,97565.0,4e-05]
[1734749372682,0.0718,97566.0,97565.0,4e-05]
[1734749375087,0.0688,97566.0,97565.0,4e-05]
[1734749375384,0.0718,97566.0,97565.0,4e-05]
[1734749376075,0.0404,97566.0,97565.0,4e-05]
[1734749376276,0.009,97566.0,97565.0,4e-05]
[1734749380082,0.02080643,97566.0,97565.0,4e-05]
[1734749380282,0.32080643,97566.0,97550.0,0.10093293]
[1734749380478,0.41208,97551.0,97550.0,0.10093293]
[1734749380691,0.42388643,97551.0,97546.0,0.051282]
[1734749380992,0.051282,97547.0,97541.0,0.28466426]
[1734749381385,0.01180643,97546.0,97541.0,0.28466426]
[1734749381590,0.051285,97542.0,97541.0,0.18373133]
[1734749381779,0.412085,97542.0,97541.0,0.18373133]
[1734749381982,0.42389143,97542.0,97541.0,0.18373133]
[1734749382177,0.42389143,97542.0,97536.0,0.24628323]
[1734749382178,0.051287,97538.0,97536.0,0.0015377]
[1734749382881,0.01180643,97537.0,97536.0,0.0015377]
[1734749383480,0.01180643,97537.0,97536.0,0.0085377]
[1734749384097,0.01280643,97537.0,97536.0,0.0085377]
[1734749385779,0.01180643,97537.0,97536.0,0.0085377]
[1734749386189,0.01296534,97537.0,97536.0,0.0085377]
[1734749386385,0.02196534,97537.0,97536.0,0.0015377]
[1734749386586,0.02244325,97537.0,97536.0,0.0015377]
[1734749388081,0.02244325,97537.0,97510.0,0.10093293]
[1734749388298,0.3608,97520.0,97511.0,0.01123403]
[1734749388587,0.00163682,97516.0,97512.0,0.01123359]
[1734749388792,0.051302,97509.0,97507.0,0.01042109]
[1734749388984,0.3608,97512.0,97503.0,0.18373133]
[1734749389179,0.051304,97505.0,97503.0,0.18373133]
[1734749389696,0.00163682,97504.0,97503.0,0.18373133]
[1734749390292,0.00163682,97504.0,97503.0,0.18873133]
[1734749390495,0.00163682,97504.0,97503.0,0.005]
[1734749390685,0.00163682,97504.0,97500.0,0.111098]
[1734749390885,0.00163682,97504.0,97503.0,0.004]
[1734749391579,0.00163682,97504.0,97503.0,0.007]
[1734749392278,0.00163682,97504.0,97503.0,0.004]
[1734749392486,0.00163682,97504.0,97503.0,0.006]
[1734749393187,0.00163682,97504.0,97503.0,0.002]
[1734749393992,0.00163682,97504.0,97503.0,0.006]
[1734749396390,0.00163682,97504.0,97503.0,0.004]
[1734749396593,0.00163682,97504.0,97503.0,0.005]
[1734749396989,0.00163682,97504.0,97503.0,0.002]
[1734749397996,0.00163682,97504.0,97503.0,0.001]
[1734749399695,0.05294182,97504.0,97503.0,0.001]
[1734749401787,0.00163682,97504.0,97503.0,0.001]
[1734749402386,0.36243682,97504.0,97503.0,0.001]
[1734749403590,0.42403682,97504.0,97503.0,0.001]
[1734749405493,0.42403682,97504.0,97481.0,0.032]
[1734749405494,0.051305,97503.0,97481.0,0.032]
[1734749405694,0.3608,97485.0,97481.0,0.032]
[1734749405888,0.051316,97483.0,97481.0,0.032]
[1734749406094,0.36132001,97485.0,97467.0,0.0316]
[1734749406400,0.051318,97479.0,97468.0,0.0317]
[1734749406604,0.051318,97479.0,97474.0,0.05132]
[1734749406899,0.05295482,97479.0,97474.0,0.05132]
[1734749407086,0.05295482,97479.0,97475.0,0.051319]
[1734749408005,0.05395482,97479.0,97478.0,0.0355]
[1734749408205,0.05395482,97479.0,97478.0,0.0445]
[1734749408206,0.05495482,97479.0,97478.0,0.0445]
[1734749408500,0.00363682,97479.0,97478.0,0.0445]
[1734749411792,0.00263682,97479.0,97478.0,0.0445]
[1734749412502,0.00163682,97479.0,97478.0,0.0355]
[1734749413295,0.00163682,97479.0,97478.0,0.0305]
[1734749413505,0.00163682,97479.0,97478.0,0.04155907]
[1734749413895,0.00163682,97479.0,97478.0,0.04255907]
[1734749414306,0.00163682,97479.0,97478.0,0.04155907]
[1734749414606,0.00163682,97479.0,97478.0,0.04655907]
[1734749414993,0.00163682,97479.0,97478.0,0.04654785]
[1734749415196,0.00163682,97479.0,97478.0,0.04854795]
[1734749416108,0.00163682,97479.0,97478.0,0.40934795]
[1734749416607,0.00163682,97479.0,97478.0,0.40734795]
[1734749416909,0.00163682,97479.0,97478.0,0.40934795]
[1734749417502,0.00163682,97479.0,97478.0,0.42035205]
[1734749417703,0.01194234,97489.0,97478.0,0.42035205]
[1734749418006,0.01194234,97489.0,97488.0,0.00112002]
[1734749418404,0.36132001,97490.0,97488.0,0.00112002]
[1734749418609,0.01194234,97489.0,97488.0,0.00112002]
[1734749419009,0.01194234,97489.0,97488.0,0.05243302]
[1734749419204,0.01194234,97489.0,97488.0,0.051313]
[1734749419607,0.01194234,97489.0,97488.0,0.412113]
[1734749419812,0.00052001,97490.0,97488.0,0.412113]
[1734749420004,0.00052001,97490.0,97489.0,0.0322]
[1734749420204,0.01194234,97502.0,97489.0,0.0322]
[1734749420405,0.01194234,97502.0,97500.0,0.051306]
[1734749420600,0.15351829,97504.0,97501.0,4e-05]
[1734749420909,0.15351829,97504.0,97500.0,0.051306]
[1734749420910,0.01187762,97503.0,97500.0,0.051306]
[1734749421114,0.01187762,97503.0,97502.0,0.051306]
[1734749421413,0.3608,97505.0,97492.0,0.10093293]
[1734749421414,0.3608,97505.0,97504.0,0.051305]
[1734749421614,0.15351829,97510.0,97509.0,0.051302]
[1734749421806,0.16543748,97510.0,97509.0,0.051302]
[1734749422402,0.15351829,97510.0,97509.0,0.051302]
[1734749422809,0.01191919,97513.0,97510.0,0.051301]
[1734749423307,0.3608,97515.0,97513.0,0.0513]
[1734749423703,0.3608,97515.0,97514.0,0.03134]
[1734749424018,0.01190326,97524.0,97523.0,0.051295]
[1734749424215,0.15351829,97529.0,97527.0,0.051293]
[1734749424718,0.37269029,97528.0,97527.0,0.051333]
[1734749425218,0.37269029,97528.0,97527.0,4e-05]
[1734749426311,0.37669029,97528.0,97527.0,4e-05]
[1734749426510,0.38569029,97528.0,97527.0,0.00104]
[1734749426913,0.38169029,97528.0,97527.0,0.00104]
[1734749427114,0.37969029,97528.0,97527.0,4e-05]
[1734749427619,0.37469029,97528.0,97527.0,4e-05]
[1734749427819,0.37969029,97528.0,97527.0,4e-05]
[1734749429616,0.37469029,97528.0,97527.0,4e-05]
[1734749429819,0.37969029,97528.0,97527.0,4e-05]
[1734749430726,0.01889029,97528.0,97527.0,4e-05]
[1734749430919,0.01889029,97528.0,97527.0,0.06554]
[1734749430920,0.007,97528.0,97527.0,0.06554]
[1734749432117,0.007,97528.0,97527.0,0.07566427]
[1734749432721,0.002,97528.0,97527.0,0.07866427]
[1734749433021,8e-05,97532.0,97527.0,0.07866427]
[1734749433226,8e-05,97532.0,97531.0,0.05129]
[1734749433426,8e-05,97532.0,97531.0,0.05133]
[1734749433720,8e-05,97532.0,97531.0,0.41213]
[1734749434424,8e-05,97532.0,97531.0,0.41313]
[1734749436924,8e-05,97532.0,97531.0,0.41213]
[1734749437229,8e-05,97532.0,97531.0,0.41313]
[1734749437425,8e-05,97532.0,97531.0,0.05233]
[1734749438929,8e-05,97532.0,97531.0,0.05133]
[1734749439227,8e-05,97532.0,97531.0,0.05233]
[1734749442016,8e-05,97532.0,97531.0,0.05133]
[1734749442221,8e-05,97532.0,97531.0,0.05233]
[1734749442421,0.36088,97532.0,97531.0,0.05233]
[1734749449631,0.36088,97532.0,97531.0,0.05133]
[1734749449822,0.36088,97532.0,97531.0,0.05233]
[1734749450018,0.36088,97532.0,97531.0,0.00104]
[1734749450623,0.42258,97532.0,97531.0,0.00104]
[1734749451234,0.57609829,97532.0,97531.0,4e-05]
[1734749451924,0.57709829,97532.0,97531.0,4e-05]
[1734749452330,0.57609829,97532.0,97531.0,4e-05]
[1734749452531,0.57709829,97532.0,97531.0,4e-05]
[1734749452834,0.42358,97532.0,97531.0,4e-05]
[1734749453532,0.42458,97532.0,97531.0,4e-05]
[1734749455030,0.42358,97532.0,97531.0,4e-05]
[1734749455230,0.42458,97532.0,97531.0,4e-05]
[1734749455623,0.43638397,97532.0,97531.0,4e-05]
[1734749455826,0.43538397,97532.0,97531.0,4e-05]
[1734749456037,0.43638397,97532.0,97531.0,4e-05]
[1734749456533,0.42358,97532.0,97531.0,4e-05]
[1734749456729,0.42458,97532.0,97531.0,4e-05]
[1734749457643,0.43639416,97532.0,97531.0,4e-05]
[1734749458133,0.40609416,97532.0,97531.0,4e-05]
[1734749458840,0.55959893,97532.0,97531.0,4e-05]
[1734749460246,0.40609416,97532.0,97531.0,4e-05]
[1734749461339,0.40509416,97532.0,97531.0,4e-05]
[1734749461531,0.39428,97532.0,97531.0,4e-05]
[1734749461730,0.39328,97532.0,97531.0,4e-05]
[1734749462041,0.39528,97532.0,97531.0,4e-05]
[1734749462446,0.39628,97532.0,97531.0,4e-05]
[1734749463643,0.39328,97532.0,97531.0,4e-05]
[1734749463846,0.39628,97532.0,97531.0,4e-05]
[1734749464753,0.40812957,97532.0,97531.0,4e-05]
[1734749465046,0.40912957,97532.0,97531.0,4e-05]
[1734749467549,0.051291,97530.0,97508.0,0.23503433]
[1734749467844,0.3608,97518.0,97508.0,0.23503433]
[1734749468048,0.412102,97510.0,97508.0,0.19399678]
[1734749468443,0.01184957,97509.0,97508.0,0.19399678]
[1734749468645,0.01184957,97509.0,97508.0,0.01026545]
[1734749468948,0.01184957,97509.0,97505.0,0.051304]
[1734749469253,0.01184957,97508.0,97505.0,0.051304]
[1734749469748,0.01184957,97509.0,97505.0,0.051304]
[1734749470052,0.01284957,97509.0,97508.0,4e-05]
[1734749470356,0.01284957,97509.0,97508.0,0.00304]
[1734749471838,0.001,97509.0,97508.0,0.00304]
[1734749472044,0.01284957,97509.0,97508.0,0.00304]
[1734749472239,0.01184957,97509.0,97508.0,0.00304]
[1734749472952,0.01284957,97509.0,97508.0,0.01004]
[1734749474742,0.001,97509.0,97508.0,0.01004]
[1734749482353,0.15362378,97517.0,97516.0,0.051298]
[1734749482567,0.15362378,97517.0,97516.0,0.412098]
[1734749482868,0.15362378,97517.0,97516.0,0.412138]
[1734749483055,0.36136001,97529.0,97516.0,0.412138]
[1734749483056,0.15362378,97524.0,97523.0,0.051295]
[1734749483364,0.15362378,97524.0,97523.0,0.051335]
[1734749484361,0.0118385,97528.0,97523.0,4e-05]
[1734749484556,0.0118385,97528.0,97526.0,0.051293]
[1734749484957,0.52678229,97529.0,97527.0,0.051292]
[1734749485252,0.52626228,97529.0,97528.0,4e-05]
[1734749485453,0.51442378,97529.0,97528.0,4e-05]
[1734749485759,0.37260315,97529.0,97528.0,4e-05]
[1734749486150,0.3608,97529.0,97528.0,4e-05]
[1734749486657,0.3608,97529.0,97528.0,0.00304]
[1734749488566,0.15362378,97530.0,97529.0,0.051292]
[1734749488865,0.15362378,97530.0,97529.0,0.051332]
[1734749489856,0.15362378,97530.0,97529.0,0.052332]
[1734749490057,0.36132001,97533.0,97529.0,0.00104]
[1734749490257,0.36132001,97533.0,97532.0,0.05129]
[1734749490459,0.3608,97533.0,97532.0,0.05133]
[1734749492259,0.3608,97533.0,97532.0,0.23461133]
[1734749493560,0.3608,97533.0,97532.0,0.05133]
[1734749496760,0.3608,97533.0,97532.0,4e-05]
[1734749498970,0.3618,97533.0,97532.0,4e-05]
[1734749499161,0.3628,97533.0,97532.0,4e-05]
[1734749508278,0.51642378,97533.0,97532.0,4e-05]
[1734749509780,0.3628,97533.0,97532.0,4e-05]
[1734749511281,0.37462526,97533.0,97532.0,4e-05]
[1734749511475,0.37362526,97533.0,97532.0,4e-05]
[1734749511681,0.37462526,97533.0,97532.0,4e-05]
[1734749512876,0.37362526,97533.0,97532.0,4e-05]
[1734749513070,0.3628,97533.0,97532.0,4e-05]
[1734749513887,0.54714854,97533.0,97532.0,4e-05]
[1734749514071,0.55796887,97533.0,97532.0,4e-05]
[1734749514380,0.55896887,97533.0,97532.0,4e-05]
[1734749515175,0.54614854,97533.0,97532.0,4e-05]
[1734749515573,0.54714854,97533.0,97532.0,4e-05]
[1734749515778,0.54614854,97533.0,97532.0,4e-05]
[1734749515979,0.54714854,97533.0,97532.0,4e-05]
[1734749516180,0.3628,97533.0,97532.0,4e-05]
[1734749518375,0.3618,97533.0,97532.0,4e-05]
[1734749518583,0.3628,97533.0,97532.0,4e-05]
[1734749522079,0.37461712,97533.0,97532.0,4e-05]
[1734749523684,0.37361712,97533.0,97532.0,4e-05]
[1734749523881,0.37461712,97533.0,97532.0,4e-05]
[1734749524080,0.37361712,97533.0,97532.0,4e-05]
[1734749524390,0.37461712,97533.0,97532.0,4e-05]
[1734749526489,0.55896566,97533.0,97532.0,4e-05]
[1734749527585,0.55796566,97533.0,97532.0,4e-05]
[1734749528091,0.55896566,97533.0,97532.0,4e-05]
[1734749529091,0.37361712,97533.0,97532.0,4e-05]
[1734749530198,0.37261712,97533.0,97532.0,4e-05]
[1734749531798,0.52638604,97533.0,97532.0,4e-05]
[1734749536791,0.16558604,97533.0,97532.0,4e-05]
[1734749536987,0.01181712,97533.0,97532.0,4e-05]
[1734749545804,0.0120061,97533.0,97532.0,0.051329]
[1734749547425,0.0120061,97533.0,97532.0,0.412129]
[1734749548120,8e-05,97536.0,97532.0,0.412129]
[1734749548121,0.0120061,97535.0,97534.0,0.051288]
[1734749548518,0.0120861,97536.0,97534.0,0.051328]
[1734749548931,0.0120061,97535.0,97534.0,0.051288]
[1734749549223,8e-05,97536.0,97534.0,0.051288]
[1734749549421,8e-05,97536.0,97534.0,0.23456933]
[1734749549615,0.001,97535.0,97534.0,0.23456933]
[1734749550015,0.002,97535.0,97534.0,0.23456933]
[1734749550621,0.002,97535.0,97534.0,0.24466022]
[1734749550925,0.002,97535.0,97534.0,0.06137889]
[1734749551714,0.0140061,97535.0,97534.0,0.06137889]
[1734749558222,0.0140061,97535.0,97534.0,0.09132496]
[1734749559828,0.002,97535.0,97534.0,0.09132496]
[1734749561222,0.002,97535.0,97534.0,0.06137889]
[1734749567231,0.01399465,97535.0,97532.0,0.24554553]
[1734749567433,0.0944,97534.0,97532.0,0.24474553]
[1734749567634,0.10639465,97534.0,97532.0,0.24474553]
[1734749567831,0.01199465,97533.0,97532.0,0.24474553]
[1734749568035,0.01199465,97533.0,97529.0,0.18367136]
[1734749568237,0.051289,97532.0,97529.0,0.18367136]
[1734749568429,0.01199465,97531.0,97529.0,0.18367136]
[1734749568830,0.01199465,97530.0,97529.0,0.18367136]
[1734749569235,0.01199465,97530.0,97529.0,0.18567136]
[1734749569435,0.01199465,97530.0,97529.0,0.002]
[1734749570837,0.01199465,97530.0,97519.0,0.13377136]
[1734749570838,0.051295,97521.0,97519.0,0.13377136]
[1734749571140,0.37279465,97520.0,97519.0,0.08987136]
[1734749571545,0.67279465,97520.0,97519.0,0.08987136]
[1734749572027,0.67279465,97520.0,97519.0,0.003]
[1734749572234,0.67279465,97520.0,97499.0,0.051306]
[1734749572440,0.3608,97500.0,97499.0,0.051306]
[1734749573843,0.15342984,97509.0,97508.0,0.051301]
[1734749574235,0.15342984,97509.0,97508.0,0.051341]
[1734749574638,0.17395362,97514.0,97508.0,4e-05]
[1734749574843,0.17395362,97514.0,97509.0,0.051301]
[1734749575148,0.17395362,97514.0,97513.0,4e-05]
[1734749575847,0.17495362,97514.0,97513.0,4e-05]
[1734749576037,0.052299,97514.0,97513.0,4e-05]
[1734749576548,0.051299,97514.0,97513.0,0.00504]
[1734749577842,0.051299,97514.0,97513.0,0.00204]
[1734749578352,0.051299,97514.0,97513.0,4e-05]
[1734749578654,0.056299,97514.0,97513.0,4e-05]
[1734749579351,0.057299,97514.0,97513.0,4e-05]
[1734749581147,0.056299,97514.0,97513.0,4e-05]
[1734749581840,0.054299,97514.0,97513.0,4e-05]
[1734749582055,0.056299,97514.0,97513.0,4e-05]
[1734749583142,0.054299,97514.0,97513.0,4e-05]
[1734749583347,0.056299,97514.0,97513.0,4e-05]
[1734749583957,0.053299,97514.0,97513.0,4e-05]
[1734749584147,0.057299,97514.0,97513.0,4e-05]
[1734749584656,0.059299,97514.0,97513.0,0.00104]
[1734749584955,0.060299,97514.0,97513.0,0.00104]
[1734749588153,0.009,97514.0,97513.0,0.01116656]
[1734749588354,0.3109,97516.0,97513.0,0.01116656]
[1734749588549,0.12246395,97521.0,97519.0,0.051295]
[1734749589048,0.20472184,97527.0,97519.0,0.051295]
[1734749589049,0.12246395,97526.0,97520.0,4e-05]
[1734749589457,0.12246395,97526.0,97525.0,4e-05]
[1734749590460,8e-05,97530.0,97525.0,4e-05]
[1734749590851,8e-05,97530.0,97529.0,4e-05]
[1734749591453,0.00908,97530.0,97529.0,4e-05]
[1734749591958,8e-05,97530.0,97529.0,4e-05]
[1734749592159,0.00508,97530.0,97529.0,0.00104]
[1734749592366,0.00608,97530.0,97529.0,0.00104]
[1734749593164,0.01008,97530.0,97529.0,0.00204]
[1734749593858,0.02207465,97530.0,97529.0,0.00204]
[1734749597765,0.20619046,97530.0,97529.0,0.00204]
[1734749598767,0.02207465,97530.0,97529.0,0.00204]
[1734749600769,0.01008,97530.0,97529.0,0.00204]
[1734749600963,0.02201977,97530.0,97529.0,0.00204]
[1734749601563,0.20624722,97530.0,97529.0,0.00204]
[1734749602666,0.56704722,97530.0,97502.0,0.24474553]
[1734749602868,0.412104,97504.0,97502.0,0.24474553]
[1734749603169,0.051307,97498.0,97497.0,0.24474553]
[1734749604166,0.01193977,97502.0,97490.0,0.11757758]
[1734749604364,0.051308,97497.0,97490.0,0.11757758]
[1734749604566,0.06324477,97502.0,97501.0,4e-05]
[1734749605377,0.051305,97502.0,97501.0,4e-05]
[1734749605570,0.06315508,97502.0,97501.0,4e-05]
[1734749608464,0.0736011,97502.0,97501.0,4e-05]
[1734749608877,0.051316,97481.0,97480.0,0.06626658]
[1734749609174,0.051316,97481.0,97478.0,0.37094396]
[1734749610277,0.052316,97481.0,97480.0,0.009]
[1734749610664,0.12269145,97486.0,97478.0,0.01014396]
[1734749610866,0.051317,97479.0,97478.0,0.004]
[1734749611267,0.051317,97479.0,97471.0,0.34464]
[1734749611476,0.3608,97487.0,97470.0,0.06626658]
[1734749611477,0.051318,97478.0,97470.0,0.06626658]
[1734749611869,0.051318,97478.0,97460.0,0.412127]
[1734749612067,0.051318,97478.0,97460.0,0.47839358]
[1734749612376,0.051318,97478.0,97462.0,0.051325]
[1734749612576,0.051318,97478.0,97476.0,0.00253873]
[1734749613167,0.051318,97478.0,97476.0,0.001]
[1734749613168,0.17400945,97478.0,97476.0,0.001]
[1734749613373,0.051318,97477.0,97476.0,0.003]
[1734749613878,0.051326,97462.0,97454.0,0.05133]
[1734749614078,0.051326,97462.0,97454.0,0.06176106]
[1734749614273,0.051327,97461.0,97454.0,0.06176106]
[1734749614671,0.051328,97459.0,97454.0,0.05133]
[1734749614977,0.051328,97459.0,97456.0,0.3608]
[1734749616275,0.001,97461.0,97456.0,0.412129]
[1734749616883,0.001,97459.0,97456.0,0.412129]
[1734749617375,0.001,97459.0,97456.0,0.426129]
[1734749618275,0.001,97459.0,97458.0,0.051328]
[1734749618480,0.002,97459.0,97458.0,0.051328]
[1734749619774,0.002,97459.0,97458.0,0.060328]
[1734749619984,0.3608,97479.0,97458.0,0.360328]
[1734749620277,0.3608,97479.0,97478.0,0.00088002]
[1734749621471,0.3608,97479.0,97478.0,0.00288002]
[1734749621974,0.3608,97479.0,97478.0,0.00388002]
[1734749626382,0.3608,97479.0,97478.0,0.00188002]
[1734749626687,0.3608,97479.0,97478.0,0.00388002]
[1734749627791,0.3608,97479.0,97478.0,0.00288002]
[1734749628286,0.051314,97484.0,97478.0,0.01298841]
[1734749628495,0.051314,97484.0,97478.0,0.05419702]
[1734749628683,0.051314,97484.0,97483.0,0.00088002]
[1734749628983,0.12243541,97490.0,97483.0,0.05219502]
[1734749629388,0.12243541,97490.0,97484.0,0.00088002]
[1734749629575,0.48379542,97491.0,97484.0,0.00088002]
[1734749630892,0.00104,97485.0,97484.0,0.00088002]
[1734749631277,0.00204,97485.0,97484.0,0.00088002]
[1734749632579,0.00104,97485.0,97484.0,0.00088002]
[1734749638391,0.12243541,97502.0,97484.0,0.00088002]
[1734749638392,0.12243541,97502.0,97485.0,0.102626]
[1734749638697,0.12243541,97502.0,97501.0,0.41306502]
[1734749639489,0.12343541,97502.0,97501.0,0.41306502]
[1734749639793,0.13143541,97502.0,97501.0,0.41406502]
[1734749639995,0.009,97502.0,97501.0,0.41406502]
[1734749640493,0.012,97502.0,97501.0,0.41406502]
[1734749641294,0.012,97502.0,97501.0,0.42425248]
[1734749641801,0.004,97502.0,97501.0,0.42325248]
[1734749641999,0.17373241,97517.0,97506.0,0.051302]
[1734749642189,0.17373241,97517.0,97507.0,0.10108883]
[1734749642390,0.17373241,97517.0,97516.0,4e-05]
[1734749643191,0.051297,97517.0,97516.0,4e-05]
[1734749644397,0.058297,97517.0,97516.0,0.00104]
[1734749644592,0.007,97517.0,97516.0,0.00104]
[1734749644897,0.007,97517.0,97516.0,0.052337]
[1734749645196,0.1295601,97517.0,97516.0,0.052337]
[1734749645592,0.1325601,97517.0,97516.0,0.052337]
[1734749646899,0.1325601,97517.0,97516.0,0.0624794]
[1734749647201,0.01,97517.0,97516.0,0.0624794]
[1734749649701,0.01,97517.0,97516.0,0.00104]
[1734749649899,0.061297,97517.0,97516.0,0.00104]
[1734749651902,0.0731448,97517.0,97516.0,0.00104]
[1734749654109,0.0731448,97517.0,97502.0,0.0609]
[1734749654110,0.051304,97503.0,97502.0,0.0302]
[1734749654296,0.051305,97502.0,97495.0,0.01034872]
[1734749654604,0.3608,97505.0,97492.0,0.3608]
[1734749654903,0.0118478,97508.0,97504.0,4e-05]
[1734749655108,0.051301,97509.0,97504.0,4e-05]
[1734749655301,0.051301,97509.0,97507.0,4e-05]
[1734749655495,0.051301,97509.0,97508.0,4e-05]
[1734749655804,0.21651312,97509.0,97508.0,4e-05]
[1734749656301,0.16521212,97509.0,97508.0,4e-05]
[1734749656514,0.15336432,97509.0,97508.0,4e-05]
[1734749656697,0.15336432,97509.0,97508.0,0.03324]
[1734749656899,0.15536432,97509.0,97508.0,0.03324]
[1734749657607,0.15936432,97509.0,97508.0,0.03324]
[1734749657808,0.17121212,97509.0,97508.0,0.03324]
[1734749658402,0.0178478,97509.0,97508.0,0.03324]
[1734749659705,0.17121212,97509.0,97508.0,0.03324]
[1734749660210,0.15936432,97509.0,97508.0,0.42594]
[1734749661002,0.006,97509.0,97508.0,0.42594]
[1734749666009,0.004,97509.0,97508.0,0.42894]
[1734749666712,0.12285544,97524.0,97508.0,0.42894]
[1734749666911,0.12285544,97524.0,97520.0,0.051295]
[1734749667212,0.12285544,97524.0,97520.0,4e-05]
[1734749667602,0.01181332,97523.0,97520.0,4e-05]
[1734749667802,0.051295,97522.0,97520.0,4e-05]
[1734749668310,0.13466876,97524.0,97520.0,0.00104]
[1734749668311,0.01189332,97521.0,97520.0,0.00104]
[1734749668609,8e-05,97521.0,97520.0,0.00104]
[1734749669702,8e-05,97521.0,97520.0,4e-05]
[1734749669906,8e-05,97521.0,97520.0,0.00104]
[1734749673214,0.12288385,97521.0,97520.0,0.00104]
[1734749673414,0.12288385,97521.0,97520.0,0.01121894]
[1734749673611,0.12288385,97521.0,97520.0,0.00104]
[1734749675706,0.13469717,97521.0,97520.0,0.00104]
[1734749675921,0.01189332,97521.0,97520.0,0.00104]
[1734749676320,0.01189332,97521.0,97520.0,4e-05]
[1734749676923,0.01289332,97521.0,97520.0,4e-05]
[1734749678917,0.01389332,97521.0,97520.0,4e-05]
[1734749681223,0.00208,97521.0,97520.0,4e-05]
[1734749681724,0.01389409,97521.0,97520.0,4e-05]
[1734749682518,0.16725841,97521.0,97520.0,4e-05]
[1734749684013,0.15544432,97521.0,97520.0,4e-05]
[1734749685418,0.00208,97521.0,97520.0,4e-05]
[1734749710242,0.36288,97521.0,97520.0,4e-05]
[1734749713049,0.36288,97521.0,97508.0,0.0332]
[1734749713244,0.051301,97509.0,97508.0,0.0332]
[1734749715042,0.051301,97509.0,97508.0,0.0372]
[1734749715237,0.051301,97509.0,97508.0,0.0392]
[1734749722347,0.051301,97509.0,97508.0,0.006]
[1734749725048,0.083701,97509.0,97508.0,0.006]
[1734749732653,0.083701,97509.0,97495.0,0.0326]
[1734749732654,0.051308,97496.0,97495.0,0.0326]
[1734749732857,0.412108,97496.0,97495.0,0.0326]
[1734749733660,0.56570016,97496.0,97495.0,0.0326]
[1734749734249,0.56670016,97496.0,97495.0,0.0456]
[1734749734967,0.413108,97496.0,97495.0,0.0456]
[1734749735952,0.052308,97496.0,97495.0,0.0456]
[1734749741468,0.051317,97480.0,97479.0,0.0636]
[1734749742669,0.052317,97480.0,97479.0,0.0706]
[1734749743252,0.053317,97480.0,97479.0,0.0796]
[1734749743469,0.053317,97480.0,97479.0,0.016]
[1734749743664,0.414117,97480.0,97479.0,0.016]
[1734749744568,0.42319951,97480.0,97479.0,0.004]
[1734749746952,0.43119951,97480.0,97479.0,0.004]
[1734749747765,0.051324,97466.0,97465.0,0.0639]
[1734749749662,0.053324,97466.0,97465.0,0.0639]
[1734749750566,0.056324,97466.0,97465.0,0.0639]
[1734749750867,0.053324,97466.0,97465.0,0.0639]
[1734749751170,0.058324,97466.0,97465.0,0.0639]
[1734749751559,0.056324,97466.0,97465.0,0.0639]
[1734749751764,0.058324,97466.0,97465.0,0.0639]
[1734749753462,0.007,97466.0,97465.0,0.0639]
[1734749754662,0.3608,97472.0,97471.0,0.051321]
[1734749755072,0.3608,97472.0,97471.0,0.05212102]
[1734749755473,0.12270695,97477.0,97471.0,0.36160002]
[1734749755771,0.12270695,97477.0,97476.0,0.051319]
[1734749755974,0.07280695,97480.0,97471.0,0.36160002]
[1734749756276,0.07280695,97480.0,97479.0,0.41291702]
[1734749757473,0.20469768,97486.0,97479.0,0.41291702]
[1734749757474,0.051314,97486.0,97479.0,0.41291702]
[1734749757877,0.051314,97486.0,97485.0,0.00080002]
[1734749758677,0.055314,97486.0,97485.0,0.00080002]
[1734749759069,0.064314,97486.0,97485.0,0.00180002]
[1734749759377,0.065314,97486.0,97485.0,0.00280002]
[1734749760967,0.060314,97486.0,97485.0,0.00180002]